bitfinex-derivatives/quotes_ETHF0:USTF0_20260128
["timestamp","ask_amount","ask_price","bid_price","bid_amount"]
[1769618016392,3.65115383,3011.5,3010.1,3.324]
[1769618017192,3.65115383,3011.3,3010.1,3.324]
[1769618017392,3.65115383,3011.3,3010.1,3.32634807]
[1769618019795,3.65115383,3011.6,3010.2,3.66691471]
[1769618019990,3.65115383,3011.6,3010.6,3.83319471]
[1769618020292,4.031,3012.6,3010.8,0.16627]
[1769618020594,44.32869682,3012.5,3010.8,3.83318471]
[1769618020784,3.52869682,3012.4,3010.8,3.83318471]
[1769618020985,3.52869682,3012.3,3010.8,3.83318471]
[1769618021191,3.52869682,3012.2,3010.8,3.83318471]
[1769618021390,40.8,3012.5,3010.8,3.83318471]
[1769618021592,3.52859814,3012.4,3010.8,3.83318471]
[1769618021897,3.52859814,3012.3,3010.8,3.83318471]
[1769618022195,3.65115383,3012.1,3010.8,3.83318471]
[1769618023499,3.65115383,3012.1,3011.0,3.66691471]
[1769618024292,3.65115383,3012.1,3011.0,3.83317471]
[1769618024490,3.65115383,3012.4,3011.0,3.83317471]
[1769618027291,3.65115383,3012.4,3011.0,0.16626]
[1769618027491,3.65115383,3012.4,3010.6,3.66691471]
[1769618027894,3.5290536,3012.3,3010.6,3.66691471]
[1769618028190,3.65115383,3012.2,3010.6,3.66691471]
[1769618028494,3.65115383,3012.2,3010.4,0.16629]
[1769618028689,3.65115383,3012.0,3010.4,0.16629]
[1769618029092,3.65115383,3012.0,3010.4,3.83320471]
[1769618029694,3.65115383,3012.6,3010.6,3.66691471]
[1769618029898,3.65115383,3012.4,3011.3,3.66691471]
[1769618030494,3.65115383,3012.4,3011.2,0.16625]
[1769618031604,3.65115383,3012.4,3010.6,3.66691471]
[1769618031899,3.65115383,3012.2,3010.6,3.66691471]
[1769618032301,3.65115383,3012.2,3010.5,0.16629]
[1769618032696,3.65115383,3012.0,3010.5,0.16629]
[1769618033405,3.65115383,3012.0,3010.3,3.66691471]
[1769618034497,3.65115383,3012.0,3010.3,3.83320471]
[1769618035005,3.65115383,3012.0,3010.4,3.81257176]
[1769618035198,3.65115383,3012.0,3010.5,3.81257176]
[1769618035398,3.65115383,3012.0,3010.6,0.16628]
[1769618035903,3.46664971,3011.8,3010.8,3.64628176]
[1769618036101,3.46664971,3012.7,3010.8,3.81255176]
[1769618036298,3.46664971,3012.5,3010.8,3.81255176]
[1769618036499,3.46664971,3012.3,3010.8,3.81255176]
[1769618036810,3.46664971,3012.1,3010.8,3.81255176]
[1769618039098,3.46664971,3012.1,3010.8,0.16627]
[1769618039600,3.46664971,3011.9,3010.4,3.64628176]
[1769618040102,3.46664971,3011.9,3010.0,3.64628176]
[1769618040307,45.77147308,3012.7,3009.7,10.90603322]
[1769618040308,3.63288971,3011.4,3009.7,10.90603322]
[1769618040497,3.46664971,3011.2,3009.7,3.64628176]
[1769618041308,3.46664971,3011.0,3009.6,0.16633]
[1769618041503,3.46664971,3011.0,3009.8,3.64628176]
[1769618041805,3.46664971,3011.0,3010.1,0.16631]
[1769618042402,3.46664971,3011.0,3010.1,0.16999881]
[1769618043507,3.46664971,3011.0,3010.1,3.81628057]
[1769618044707,3.325,3012.3,3010.1,3.81628057]
[1769618044708,3.46664971,3011.9,3010.8,3.64628176]
[1769618045912,3.46664971,3011.9,3010.7,0.16628]
[1769618046108,3.46664971,3011.9,3010.4,3.64628176]
[1769618046513,3.46664971,3011.7,3010.4,3.64628176]
[1769618046914,3.46664971,3011.7,3010.1,3.81627057]
[1769618047212,3.46664971,3011.5,3010.1,3.81627057]
[1769618048610,3.46664971,3011.5,3010.2,3.81258176]
[1769618051117,3.46664971,3011.3,3010.1,0.00368881]
[1769618051314,3.46664971,3010.9,3009.0,3.64628176]
[1769618051514,3.46664971,3010.7,3009.0,3.81265176]
[1769618052320,3.47068774,3010.7,3009.0,3.8168919]
[1769618053410,3.46664971,3010.5,3009.0,0.00424014]
[1769618053608,3.46664971,3010.3,3009.0,0.00424014]
[1769618053809,3.46664971,3010.3,3008.5,0.16639]
[1769618054215,5.05812171,3010.1,3008.5,0.16639]
[1769618054415,3.46664971,3010.0,3008.5,0.16639]
[1769618054624,3.46664971,3009.8,3008.4,1.94455525]
[1769618054919,3.46664971,3009.8,3008.4,1.9475816]
[1769618055114,3.46664971,3009.6,3008.4,1.9475816]
[1769618055826,3.46664971,3009.4,3007.6,3.64628176]
[1769618056914,3.46664971,3009.2,3007.7,0.16644]
[1769618057219,3.46664971,3009.2,3007.6,3.65049266]
[1769618057220,3.46664971,3009.8,3008.0,3.81270176]
[1769618057425,3.46664971,3009.6,3008.0,3.81270176]
[1769618057613,44.26664971,3009.5,3008.0,3.81270176]
[1769618058020,3.46664971,3009.4,3008.0,3.81270176]
[1769618059716,3.46664971,3009.4,3008.1,0.16642]
[1769618059918,3.46664971,3009.4,3008.2,3.64628176]
[1769618060622,3.46664971,3009.8,3008.4,3.64628176]
[1769618060811,3.46664971,3009.8,3008.6,3.64628176]
[1769618061412,3.46664971,3009.8,3008.5,0.1664]
[1769618061613,3.46664971,3009.8,3008.3,3.64628176]
[1769618063818,3.46664971,3009.8,3008.4,0.1664]
[1769618064918,3.46664971,3009.8,3008.4,3.72941765]
[1769618066223,3.46664971,3009.8,3008.6,3.72940765]
[1769618066819,3.37681263,3010.5,3009.1,3.74096289]
[1769618067021,3.37681263,3010.5,3009.3,3.57460289]
[1769618068223,3.37681263,3010.5,3009.3,3.74095289]
[1769618068421,3.37681263,3010.8,3009.3,3.74095289]
[1769618068922,3.38085066,3010.7,3009.3,3.74095289]
[1769618070831,3.37681263,3010.4,3009.0,3.57460289]
[1769618071213,3.37681263,3010.2,3008.2,3.57460289]
[1769618071521,3.37681263,3009.9,3008.2,3.74101289]
[1769618071721,3.37681263,3009.8,3008.2,3.74101289]
[1769618072828,3.37681263,3009.6,3008.2,3.74101289]
[1769618077623,3.37681263,3009.6,3008.1,3.327]
[1769618077932,3.37681263,3009.4,3008.1,3.327]
[1769618078127,3.37681263,3009.2,3008.1,3.327]
[1769618078334,3.37681263,3009.1,3008.1,3.327]
[1769618078825,3.37681263,3009.1,3007.9,3.57460289]
[1769618079035,3.37681263,3009.1,3007.7,0.16644]
[1769618079530,3.37681263,3008.9,3007.6,0.0042109]
[1769618080320,3.37681263,3009.4,3008.2,3.57460289]
[1769618080526,3.37681263,3009.2,3008.2,3.57460289]
[1769618080727,3.37681263,3009.2,3007.9,3.57460289]
[1769618081030,3.37681263,3009.2,3007.6,3.74526379]
[1769618081531,3.37681263,3009.2,3007.7,3.74104289]
[1769618082730,3.37681263,3009.1,3007.7,3.74104289]
[1769618082933,3.37681263,3009.1,3007.8,3.74104289]
[1769618083133,3.37681263,3009.1,3008.0,3.57460289]
[1769618083323,3.37681263,3009.4,3008.0,3.74102289]
[1769618083629,6.9132787,3009.3,3008.0,3.74102289]
[1769618083826,3.37681263,3009.3,3008.2,3.57460289]
[1769618085427,3.37681263,3009.3,3008.1,0.16642]
[1769618086132,3.37681263,3009.3,3008.1,3.74102289]
[1769618089233,3.37681263,3009.1,3007.7,3.57460289]
[1769618089736,3.37681263,3009.1,3007.7,3.74104289]
[1769618090834,3.37681263,3008.9,3007.7,3.74104289]
[1769618092134,3.37681263,3009.3,3007.7,3.74104289]
[1769618092340,3.37681263,3009.1,3007.7,3.74104289]
[1769618093938,3.37681263,3009.1,3007.9,0.16643]
[1769618094143,3.37681263,3009.1,3008.0,3.57460289]
[1769618094440,3.37681263,3009.1,3007.9,0.16643]
[1769618095444,3.37681263,3009.1,3007.6,3.57881379]
[1769618095744,3.71955955,3008.9,3007.6,3.57881379]
[1769618098740,3.71955955,3008.9,3007.6,0.0042109]
[1769618099043,3.71955955,3008.7,3007.6,0.0042109]
[1769618100144,3.71955955,3008.7,3007.6,3.7207795]
[1769618100436,3.71955955,3009.4,3007.6,3.7207795]
[1769618100631,3.71955955,3009.2,3007.8,3.7165686]
[1769618100838,3.54149356,3009.1,3008.2,0.16641]
[1769618101038,3.71955955,3009.6,3008.3,3.8829686]
[1769618101237,3.71955955,3009.4,3008.3,3.8829686]
[1769618101443,3.54084351,3009.3,3008.3,3.8829686]
[1769618101645,3.71955955,3009.7,3008.7,3.7165686]
[1769618101847,3.54308599,3009.6,3008.7,3.7165686]
[1769618102047,3.54308599,3009.5,3008.7,3.7165686]
[1769618102239,3.71955955,3009.7,3008.7,3.7165686]
[1769618102543,7.26271746,3009.6,3008.7,3.7165686]
[1769618102743,3.54315791,3009.5,3008.7,3.7165686]
[1769618102946,3.71955955,3009.6,3008.7,3.7165686]
[1769618103253,3.54318056,3009.5,3008.7,3.7165686]
[1769618103437,3.71955955,3009.6,3008.7,3.7165686]
[1769618103643,3.55503797,3009.5,3008.7,3.7165686]
[1769618103843,3.71955955,3009.6,3008.7,3.7165686]
[1769618104146,3.55503448,3009.5,3008.7,3.7165686]
[1769618104453,3.71955955,3009.6,3008.7,3.7165686]
[1769618104641,3.55496918,3009.5,3008.7,3.7165686]
[1769618104842,3.71955955,3009.6,3008.7,3.7165686]
[1769618105041,3.55496698,3009.5,3008.7,3.7165686]
[1769618105242,3.71955955,3009.6,3008.7,3.7165686]
[1769618105444,3.55507179,3009.5,3008.7,3.7165686]
[1769618105651,3.71955955,3009.6,3008.7,3.7165686]
[1769618105839,3.55474524,3009.5,3008.7,3.7165686]
[1769618106150,3.71955955,3009.9,3008.7,3.7165686]
[1769618106448,3.55465606,3009.8,3008.7,3.8829586]
[1769618106648,3.71955955,3009.9,3008.7,3.8829586]
[1769618106841,3.71955955,3009.9,3008.9,3.7165686]
[1769618107046,3.71955955,3010.2,3008.9,3.8829486]
[1769618107245,3.55359314,3010.1,3008.9,3.8829486]
[1769618107446,3.55359314,3010.0,3008.9,3.8829486]
[1769618107645,3.71955955,3010.2,3008.9,3.8829486]
[1769618107845,3.55225774,3010.1,3008.9,3.8829486]
[1769618108045,3.71955955,3009.9,3008.5,3.8829686]
[1769618108846,3.71955955,3009.9,3008.7,3.7165686]
[1769618109055,3.71955955,3009.9,3008.7,3.8829586]
[1769618110056,3.71955955,3009.9,3007.8,13.73075146]
[1769618110057,3.71955955,3009.9,3008.4,3.7165686]
[1769618110358,3.71955955,3009.9,3008.3,0.16641]
[1769618110552,3.71955955,3009.7,3008.3,0.16641]
[1769618110753,3.71955955,3009.5,3008.1,3.7165686]
[1769618112655,3.71955955,3009.5,3008.1,3.8829886]
[1769618112854,3.71955955,3009.5,3008.3,3.8829786]
[1769618114053,3.71955955,3010.2,3008.6,3.7165686]
[1769618114257,3.71955955,3010.2,3008.5,0.1664]
[1769618114258,3.71955955,3010.0,3008.8,3.7165686]
[1769618114859,3.71955955,3010.0,3008.8,3.8829486]
[1769618116655,3.71955955,3010.0,3008.3,0.16641]
[1769618116860,3.71955955,3010.0,3008.4,3.7165686]
[1769618117264,3.71955955,3010.0,3008.4,3.8829686]
[1769618118760,3.71955955,3009.8,3008.4,3.8829686]
[1769618123962,3.71955955,3009.8,3008.6,3.7165686]
[1769618125054,3.71955955,3009.8,3007.9,3.63825664]
[1769618125251,3.59964185,3009.6,3007.9,3.63825664]
[1769618125571,3.59964185,3009.4,3007.9,3.63825664]
[1769618125768,3.59964185,3009.2,3007.9,3.80468664]
[1769618126170,3.59964185,3009.2,3008.4,3.63825664]
[1769618126365,3.59964185,3010.1,3008.4,3.63825664]
[1769618126563,3.59964185,3009.9,3008.4,3.63825664]
[1769618126878,3.59964185,3009.7,3008.5,3.6449739]
[1769618127866,3.56541412,3010.0,3008.8,3.4785739]
[1769618129171,3.56541412,3009.8,3008.8,3.4785739]
[1769618129757,3.56541412,3009.8,3008.7,0.16639]
[1769618129758,3.56541412,3009.8,3008.2,3.4785739]
[1769618129964,3.56541412,3009.6,3008.2,3.4785739]
[1769618130176,3.56541412,3009.4,3008.2,3.4785739]
[1769618130471,3.56541412,3009.2,3008.2,3.4785739]
[1769618131068,3.56541412,3009.6,3008.2,3.4785739]
[1769618131268,7.12140968,3009.5,3008.2,3.4785739]
[1769618131470,3.56541412,3009.5,3008.2,3.4785739]
[1769618131971,3.56541412,3009.8,3008.7,3.4785739]
[1769618132168,3.56541412,3009.9,3008.7,3.4785739]
[1769618132966,3.56541412,3009.9,3008.7,3.6449639]
[1769618133473,3.56541412,3010.2,3008.7,3.6449639]
[1769618133773,3.54149528,3010.1,3008.9,3.4785739]
[1769618133968,3.54149528,3010.0,3008.9,3.4785739]
[1769618134167,3.56541412,3010.2,3008.9,3.4785739]
[1769618134374,3.54129476,3010.1,3008.9,3.4785739]
[1769618134571,3.56541412,3010.2,3008.9,3.4785739]
[1769618134773,3.5410389,3010.1,3008.9,3.4785739]
[1769618134974,3.56541412,3010.2,3008.9,3.4785739]
[1769618135174,3.5410389,3010.1,3008.9,3.4785739]
[1769618135475,3.56541412,3010.2,3008.9,3.4785739]
[1769618135974,3.56541412,3010.2,3009.2,3.4785739]
[1769618136175,0.00403803,3010.7,3009.2,3.4785739]
[1769618136374,3.56541412,3010.5,3009.2,3.4785739]
[1769618140874,3.56541412,3010.5,3009.2,3.6449339]
[1769618141071,3.53684126,3010.4,3009.2,3.6449339]
[1769618141271,3.56541412,3010.5,3009.2,3.6449339]
[1769618141471,3.53632246,3010.4,3009.2,3.6449339]
[1769618141771,3.56541412,3010.5,3009.2,3.6449339]
[1769618142079,3.53638692,3010.4,3009.2,3.6449339]
[1769618142278,3.56541412,3010.5,3009.2,3.6449339]
[1769618142470,3.53609508,3010.4,3009.2,3.6449339]
[1769618142671,3.56541412,3010.5,3009.2,3.6449339]
[1769618142871,3.53610389,3010.4,3009.2,3.6449339]
[1769618143073,3.56541412,3010.5,3009.2,3.6449339]
[1769618143280,3.53610295,3010.4,3009.2,3.6449339]
[1769618143480,3.56541412,3010.5,3009.2,3.6449339]
[1769618143780,3.53569424,3010.4,3009.2,3.6449339]
[1769618143979,3.56541412,3010.5,3009.2,3.6449339]
[1769618144181,3.5356936,3010.4,3009.2,3.6449339]
[1769618144383,3.56541412,3010.5,3009.2,3.6449339]
[1769618144582,3.53524507,3010.4,3009.2,3.6449339]
[1769618144784,3.56541412,3010.5,3009.2,3.6449339]
[1769618145084,3.53530389,3010.4,3009.2,3.6449339]
[1769618145280,3.56541412,3010.5,3009.2,3.6449339]
[1769618145482,3.53489881,3010.4,3009.2,3.6449339]
[1769618145682,3.56541412,3010.5,3009.2,3.6449339]
[1769618145872,3.53489862,3010.4,3009.2,3.6449339]
[1769618146077,3.56541412,3010.5,3009.2,3.6449339]
[1769618146383,3.56541412,3010.5,3009.4,3.4785739]
[1769618146583,0.00403803,3010.7,3009.4,3.4785739]
[1769618147181,3.56945215,3010.7,3009.4,3.4785739]
[1769618147782,3.56945215,3010.7,3009.5,0.16634]
[1769618147983,3.56945215,3010.7,3009.6,3.4785739]
[1769618149583,3.56945215,3010.7,3009.2,3.4785739]
[1769618149882,3.56541412,3010.5,3009.2,3.6449339]
[1769618152382,3.56541412,3010.4,3009.2,3.6449339]
[1769618154187,3.56541412,3010.4,3009.2,0.16636]
[1769618154390,3.56541412,3010.4,3009.2,3.6449339]
[1769618160295,3.56541412,3010.4,3009.4,0.16634]
[1769618160496,3.70386387,3010.7,3009.5,3.58861446]
[1769618161196,3.69982584,3010.5,3008.9,3.58861446]
[1769618161495,3.70528823,3010.6,3008.7,7.25975146]
[1769618161496,3.86612584,3010.3,3008.7,3.58861446]
[1769618161799,3.69982584,3010.1,3008.7,3.58861446]
[1769618161994,3.69982584,3009.9,3008.7,3.58861446]
[1769618162393,3.69982584,3009.9,3008.0,10.84836592]
[1769618162596,3.69982584,3009.7,3008.1,3.58861446]
[1769618162798,3.69982584,3009.5,3008.1,3.58861446]
[1769618164990,3.69982584,3009.5,3008.3,3.58861446]
[1769618166794,3.69982584,3010.1,3008.6,3.58861446]
[1769618166995,7.22655816,3010.0,3008.8,0.16638]
[1769618167195,3.69982584,3010.0,3008.2,3.58861446]
[1769618167496,3.69982584,3010.0,3008.4,3.58861446]
[1769618167899,3.69982584,3010.0,3008.4,3.75501446]
[1769618171007,3.69982584,3009.8,3008.4,3.75501446]
[1769618175102,3.69982584,3009.8,3008.1,5.53961446]
[1769618175303,3.69982584,3009.3,3008.0,3.327]
[1769618176403,3.86617584,3009.3,3007.8,3.58861446]
[1769618176798,3.69982584,3009.1,3007.6,0.1706609]
[1769618176999,3.69982584,3008.9,3007.6,0.0042109]
[1769618177204,3.69982584,3008.7,3007.6,0.0042109]
[1769618177503,3.86621584,3008.7,3007.6,0.0042109]
[1769618178213,3.69982584,3008.2,3006.7,3.58861446]
[1769618178812,3.69982584,3008.5,3007.0,3.58861446]
[1769618179208,3.70352461,3008.5,3007.0,3.59153415]
[1769618179616,3.70352461,3008.5,3007.0,3.75801415]
[1769618179821,3.70352461,3008.5,3007.3,3.58861446]
[1769618180222,0.00369877,3008.5,3007.3,3.58861446]
[1769618181130,0.00369877,3008.5,3007.7,3.58861446]
[1769618181328,3.69982584,3009.4,3008.0,3.58861446]
[1769618181631,3.69982584,3009.9,3008.2,3.58861446]
[1769618182029,3.69982584,3009.9,3008.2,3.75502446]
[1769618182429,3.70250953,3009.9,3008.2,3.75502446]
[1769618182930,0.00268369,3009.9,3008.6,3.75500446]
[1769618183228,1.0819568,3010.3,3009.0,3.58861446]
[1769618183929,1.0819568,3010.3,3009.2,0.16636]
[1769618184122,7.85882584,3011.1,3009.5,3.58861446]
[1769618184324,7.86194468,3011.1,3009.5,3.59112907]
[1769618184531,3.69982584,3011.0,3009.5,3.59112907]
[1769618184733,3.69982584,3010.9,3009.5,3.59112907]
[1769618188534,0.00311884,3011.1,3009.5,3.59112907]
[1769618188736,3.68855986,3011.1,3009.7,3.3780247]
[1769618190734,3.68855986,3011.1,3009.7,3.5443547]
[1769618190934,0.00311884,3011.1,3009.7,3.5443547]
[1769618192031,0.00311884,3011.1,3009.9,3.3780247]
[1769618192229,0.00311884,3011.1,3009.9,3.5443447]
[1769618192728,3.68855986,3011.1,3009.9,3.3780247]
[1769618193428,3.68855986,3011.1,3009.5,3.38053931]
[1769618196629,3.68855986,3011.1,3009.5,3.54687931]
[1769618197634,3.68855986,3011.1,3009.7,3.3780247]
[1769618198137,44.48544102,3011.0,3009.7,3.3780247]
[1769618198338,3.68544102,3011.0,3009.7,3.3780247]
[1769618200333,0.00311884,3011.1,3009.7,3.5443547]
[1769618200640,3.68855986,3011.1,3009.7,3.5443547]
[1769618200942,3.68544102,3011.0,3009.7,3.3780247]
[1769618202037,3.68544102,3011.0,3009.7,3.5443547]
[1769618205434,3.68544102,3011.0,3009.9,3.3780247]
[1769618207044,0.00311884,3011.1,3010.1,3.5443347]
[1769618207742,0.16622,3011.8,3009.6,1.59340923]
[1769618207743,3.68544102,3011.8,3010.6,3.3780247]
[1769618208540,3.95620435,3011.8,3010.6,3.3780247]
[1769618208750,3.96038514,3011.8,3010.6,3.3780247]
[1769618209741,3.68962181,3011.8,3010.6,3.3780247]
[1769618211935,0.00418079,3011.8,3010.6,3.3780247]
[1769618213151,3.68962181,3011.8,3010.6,3.3780247]
[1769618214853,3.5330061,3011.7,3009.8,3.69880628]
[1769618215048,3.38317289,3011.6,3010.2,3.69880628]
[1769618217942,3.38317289,3011.6,3010.2,3.86510628]
[1769618219449,3.38317289,3011.4,3010.2,3.86510628]
[1769618221256,3.38317289,3011.7,3010.6,3.69880628]
[1769618221451,0.00418079,3011.8,3010.6,3.69880628]
[1769618221655,3.53216389,3011.7,3010.6,3.86508628]
[1769618221842,0.00418079,3011.8,3010.8,0.16627]
[1769618222041,3.38317289,3012.3,3010.9,3.69880628]
[1769618222248,3.53146166,3012.2,3011.1,3.69880628]
[1769618222447,3.53146166,3012.1,3011.1,3.69880628]
[1769618222650,3.38317289,3012.3,3011.1,3.69880628]
[1769618222856,3.53144448,3012.2,3011.1,3.69880628]
[1769618223048,0.00415159,3012.2,3011.1,3.69880628]
[1769618223750,3.38317289,3012.0,3011.1,3.69880628]
[1769618224949,3.38317289,3012.0,3010.7,3.69880628]
[1769618225456,3.38317289,3011.8,3010.4,3.69880628]
[1769618225652,3.38317289,3011.8,3010.1,3.69880628]
[1769618225855,3.38317289,3011.4,3010.1,3.69880628]
[1769618226156,3.54942289,3011.2,3009.8,3.69880628]
[1769618226349,3.38317289,3011.0,3009.8,3.69880628]
[1769618226659,3.38317289,3010.8,3009.8,3.69880628]
[1769618227349,3.38317289,3010.8,3009.5,3.70132089]
[1769618228050,3.38317289,3010.8,3009.5,0.00251461]
[1769618228246,3.38317289,3010.8,3009.5,3.70132089]
[1769618232060,3.38317289,3010.6,3009.2,3.69880628]
[1769618232260,3.38317289,3010.4,3008.9,3.69880628]
[1769618233059,3.38317289,3010.4,3008.9,3.7023039]
[1769618234854,3.54945289,3010.7,3008.9,3.8686739]
[1769618235056,6.91180472,3010.6,3008.9,3.8686739]
[1769618235257,3.38317289,3010.6,3008.9,3.8686739]
[1769618237159,3.38317289,3010.4,3008.9,0.00349762]
[1769618237369,3.38317289,3010.2,3008.9,0.00349762]
[1769618237963,3.38317289,3010.0,3008.9,0.00349762]
[1769618238163,3.38598889,3010.0,3008.9,0.00349762]
[1769618239368,3.38598889,3010.0,3008.3,3.86521628]
[1769618240470,3.38598889,3010.0,3008.3,3.70261787]
[1769618240471,3.38317289,3009.8,3008.3,3.70261787]
[1769618242074,3.38317289,3009.8,3008.3,3.86902787]
[1769618242271,0.002816,3010.0,3008.5,3.69880628]
[1769618242673,3.38598889,3010.0,3008.5,3.69880628]
[1769618243970,3.38598889,3010.0,3008.7,3.69880628]
[1769618245474,3.38598889,3010.0,3008.4,3.43698649]
[1769618245475,0.16632,3009.9,3008.4,3.43698649]
[1769618245678,3.6847276,3009.8,3008.4,3.43698649]
[1769618246074,3.6847276,3009.6,3008.4,3.43698649]
[1769618249383,0.002816,3010.0,3008.3,0.00381159]
[1769618249384,3.55501005,3009.2,3008.3,0.00381159]
[1769618249581,3.55501005,3009.2,3008.3,0.00194426]
[1769618249781,3.55501005,3009.2,3007.5,3.36295292]
[1769618249984,3.55501005,3008.9,3007.5,3.36295292]
[1769618250175,3.55501005,3008.9,3006.9,0.16649]
[1769618250176,3.55501005,3008.9,3007.2,3.36295292]
[1769618250383,6.163,3009.5,3006.9,3.36295292]
[1769618250384,3.55501005,3008.5,3006.9,3.36295292]
[1769618250987,3.55501005,3008.5,3007.1,3.36295292]
[1769618251283,3.55501005,3008.5,3007.4,3.36295292]
[1769618251584,40.8,3008.8,3007.7,3.36295292]
[1769618252081,3.55501005,3009.6,3008.0,3.36295292]
[1769618252274,3.55501005,3009.6,3008.2,3.36295292]
[1769618252474,3.55501005,3009.8,3008.2,3.52936292]
[1769618252870,3.81817797,3009.8,3008.2,3.52936292]
[1769618254380,3.81817797,3009.8,3008.2,3.36295292]
[1769618255085,3.55501005,3009.6,3008.2,3.36295292]
[1769618256781,44.35501005,3009.9,3008.2,3.52936292]
[1769618257186,44.35501005,3009.9,3008.4,3.36295292]
[1769618257787,3.55501005,3009.9,3008.4,3.52935292]
[1769618259487,3.55501005,3009.9,3008.4,3.36295292]
[1769618259683,3.55501005,3009.9,3008.6,3.36295292]
[1769618261792,3.55501005,3009.7,3008.7,3.36295292]
[1769618263587,3.55501005,3009.7,3008.3,3.36295292]
[1769618263794,3.55501005,3009.5,3007.9,3.36295292]
[1769618263995,3.55501005,3009.3,3007.9,3.36295292]
[1769618266095,3.55501005,3009.1,3007.9,3.36295292]
[1769618266897,3.55501005,3009.1,3007.6,3.36295292]
[1769618267198,3.55501005,3008.9,3007.6,3.36295292]
[1769618268797,3.55501005,3008.9,3007.6,3.52940292]
[1769618269397,3.55501005,3008.9,3007.6,3.36295292]
[1769618269793,3.55501005,3008.7,3007.3,3.36295292]
[1769618269999,3.55501005,3008.5,3007.3,3.36295292]
[1769618273093,3.55501005,3009.2,3007.6,0.16645]
[1769618273299,3.55501005,3009.0,3007.7,3.36295292]
[1769618273602,2.225,3009.3,3007.9,3.36295292]
[1769618273603,3.55501005,3009.3,3007.9,3.36295292]
[1769618273902,3.55501005,3009.1,3007.9,3.36295292]
[1769618274201,3.54219002,3009.0,3007.9,3.36295292]
[1769618275397,3.59229485,3009.4,3007.9,3.36295292]
[1769618275587,3.54215607,3009.3,3007.9,3.36295292]
[1769618275792,3.54215607,3009.2,3007.9,3.36295292]
[1769618276101,3.54215607,3009.1,3007.9,3.52938292]
[1769618276302,3.59229485,3009.4,3007.9,3.52938292]
[1769618276500,3.54222325,3009.3,3008.2,3.4929761]
[1769618276794,3.59511085,3010.0,3008.4,3.4929761]
[1769618277000,7.13501679,3009.9,3008.4,3.4929761]
[1769618277196,3.54272194,3009.8,3008.4,3.4929761]
[1769618277399,3.59229485,3009.7,3008.4,3.4929761]
[1769618277701,3.59229485,3009.5,3008.4,3.4929761]
[1769618277898,7.13501679,3009.4,3008.4,3.4929761]
[1769618278088,3.59229485,3009.4,3008.4,3.4929761]
[1769618278993,3.59229485,3009.2,3008.1,3.4929761]
[1769618282900,3.59229485,3009.6,3008.1,3.4929761]
[1769618283100,3.5440877,3009.5,3008.3,3.6593861]
[1769618283399,3.59229485,3009.9,3008.3,3.6593861]
[1769618283597,3.59229485,3009.7,3008.3,3.6593861]
[1769618283805,3.54412661,3009.6,3008.3,3.6593861]
[1769618283998,3.59229485,3009.7,3008.3,3.6593861]
[1769618284199,3.54336658,3009.6,3008.3,3.6593861]
[1769618284406,3.59229485,3009.7,3008.3,3.6593861]
[1769618284709,3.5433608,3009.6,3008.3,3.6593861]
[1769618284911,3.59229485,3009.7,3008.3,3.6593861]
[1769618285102,3.54308071,3009.6,3008.3,3.6593861]
[1769618285304,3.59229485,3009.7,3008.3,3.6593861]
[1769618286310,0.002816,3010.0,3007.5,1.952]
[1769618286311,3.59511085,3010.0,3008.7,3.6593661]
[1769618289403,0.002816,3010.0,3009.1,3.6593461]
[1769618289604,0.002816,3010.0,3009.1,3.66316784]
[1769618290515,3.59229485,3010.6,3009.6,3.4929761]
[1769618291016,40.8,3010.9,3009.6,3.4929761]
[1769618291217,3.59229485,3010.8,3009.6,3.4929761]
[1769618291609,3.59229485,3010.8,3009.1,0.00382174]
[1769618291610,3.59538338,3010.8,3009.8,3.4929761]
[1769618297024,0.00308853,3010.8,3009.8,3.4929761]
[1769618297620,3.59538338,3010.8,3009.8,3.4929761]
[1769618298118,3.59538338,3010.8,3010.2,3.4929761]
[1769618298119,0.00308853,3010.8,3010.2,3.4929761]
[1769618298319,3.59229485,3011.3,3010.2,3.4929761]
[1769618299317,3.59570061,3011.3,3010.2,3.4929761]
[1769618300723,3.59229485,3010.8,3009.4,3.6593161]
[1769618301822,3.59229485,3011.2,3009.8,3.4929761]
[1769618302920,3.59229485,3011.2,3009.8,3.6592961]
[1769618304327,3.59229485,3011.2,3010.0,3.4929761]
[1769618306526,3.59229485,3011.2,3009.9,0.16632]
[1769618306727,3.59229485,3011.2,3009.7,3.46383919]
[1769618308125,3.59229485,3011.2,3009.9,3.8651835]
[1769618309727,3.59229485,3011.2,3009.6,3.6988635]
[1769618310124,3.59229485,3011.2,3009.6,3.8652035]
[1769618310321,3.59229485,3011.2,3009.8,3.6988635]
[1769618312322,3.48543243,3010.8,3009.5,3.6988635]
[1769618312723,3.48543243,3010.8,3009.1,0.17018174]
[1769618313029,3.48543243,3010.8,3009.2,3.6988635]
[1769618315531,5.07859158,3010.4,3009.1,0.00382174]
[1769618315730,3.48543243,3010.3,3009.1,0.00382174]
[1769618316128,3.48543243,3010.2,3009.1,0.00382174]
[1769618316528,3.48543243,3010.0,3008.6,3.8652535]
[1769618317432,1.59315915,3009.9,3008.4,2.528]
[1769618317735,3.48543243,3009.7,3008.4,0.00357178]
[1769618318635,3.48543243,3009.7,3008.4,3.70243528]
[1769618319537,5.444,3009.9,3008.4,3.86883528]
[1769618319732,8.92943243,3009.9,3008.4,3.86883528]
[1769618320137,3.48543243,3009.8,3008.4,3.86883528]
[1769618324642,3.48543243,3009.8,3008.6,3.6988635]
[1769618325238,3.48543243,3009.8,3008.4,0.00357178]
[1769618325437,3.48543243,3009.8,3008.4,3.70243528]
[1769618325844,3.48543243,3009.8,3008.4,0.00357178]
[1769618327246,3.48543243,3009.8,3008.4,3.70243528]
[1769618328235,3.48543243,3009.6,3008.4,0.00357178]
[1769618334151,3.48543243,3009.6,3008.4,3.70243528]
[1769618334551,3.48543243,3009.6,3008.4,3.86883528]
[1769618334746,3.70498489,3010.2,3008.5,0.1664]
[1769618334944,3.70498489,3010.0,3008.6,3.68857835]
[1769618337149,3.70498489,3010.0,3008.8,3.68857835]
[1769618339258,3.70498489,3010.0,3008.4,0.00357178]
[1769618339444,3.70498489,3009.8,3008.4,3.69215013]
[1769618339752,3.70498489,3009.6,3008.4,0.00357178]
[1769618340353,3.70498489,3009.6,3008.5,3.68857835]
[1769618340940,3.70498489,3009.6,3008.4,0.00357178]
[1769618342852,3.70498489,3010.2,3008.8,3.68857835]
[1769618343050,3.70498489,3010.2,3008.7,3.68857835]
[1769618343351,3.70498489,3010.0,3008.5,3.85497835]
[1769618343845,3.54493172,3009.9,3008.5,3.85497835]
[1769618344052,3.70498489,3009.7,3008.4,0.00357178]
[1769618345156,3.70498489,3009.5,3008.4,0.00357178]
[1769618345655,3.70498489,3009.3,3008.4,0.00357178]
[1769618346249,3.70498489,3009.1,3008.4,0.00357178]
[1769618346453,3.70863759,3009.1,3007.8,3.68857835]
[1769618347554,3.70863759,3009.1,3007.8,3.69136942]
[1769618347756,3.70863759,3009.1,3007.8,0.00279107]
[1769618348148,3.70498489,3008.9,3007.8,0.00279107]
[1769618348748,3.70498489,3008.8,3007.8,0.00279107]